bitfinex-derivatives/quotes_SOLF0:USTF0_20250320
["timestamp","ask_amount","ask_price","bid_price","bid_amount"]
[1742478287586,7.6452,130.85,130.84,0.05783532]
[1742478287779,0.05134712,130.87,130.84,0.05783532]
[1742478287983,30.52,130.86,130.84,0.05783532]
[1742478288382,30.52,130.86,130.84,7.70323532]
[1742478288879,30.52,130.86,130.84,0.05783532]
[1742478289285,38.1649,130.86,130.84,0.05783532]
[1742478290687,38.1649,130.86,130.84,7.70353532]
[1742478290884,30.52,130.86,130.84,7.70353532]
[1742478291084,30.52,130.86,130.84,0.05783532]
[1742478291781,0.05134712,130.87,130.85,7.6449]
[1742478292287,0.05134712,130.87,130.84,0.05783532]
[1742478292484,0.05134712,130.87,130.86,7.6446]
[1742478292686,0.05134712,130.87,130.84,0.05783532]
[1742478293286,7.69564712,130.87,130.84,0.05783532]
[1742478293683,7.69564712,130.87,130.84,7.70313532]
[1742478293880,0.05134712,130.87,130.84,0.05783532]
[1742478294289,0.05134712,130.87,130.84,30.37783532]
[1742478294887,0.05134712,130.87,130.85,7.6448]
[1742478295083,0.05134712,130.87,130.84,0.05783532]
[1742478295490,7.6452,130.85,130.84,0.05783532]
[1742478296291,7.6448,130.86,130.84,0.05783532]
[1742478296494,30.37134712,130.87,130.84,0.05783532]
[1742478296887,7.6452,130.85,130.84,0.05783532]
[1742478298396,7.6482,130.8,130.78,2.058]
[1742478298691,30.28,130.83,130.78,2.058]
[1742478299486,37.9267,130.83,130.78,2.058]
[1742478299691,0.05695957,130.82,130.8,7.6481]
[1742478299994,7.70395957,130.82,130.8,7.6481]
[1742478300197,0.05695957,130.82,130.79,0.04966102]
[1742478300590,7.6475,130.81,130.79,0.04966102]
[1742478300790,0.05695957,130.82,130.79,0.04966102]
[1742478301392,0.05695957,130.82,130.81,7.6475]
[1742478301597,0.05695957,130.82,130.79,0.04966102]
[1742478302498,0.05695957,130.82,130.8,7.6481]
[1742478302702,0.05695957,130.82,130.79,0.04966102]
[1742478303395,7.6481,130.8,130.79,0.04966102]
[1742478303587,37.9081,130.8,130.79,0.04966102]
[1742478303792,30.26,130.8,130.79,0.04966102]
[1742478304196,0.05695957,130.82,130.79,7.69786102]
[1742478304394,37.98435957,130.82,130.79,7.69786102]
[1742478304796,30.33695957,130.82,130.79,0.04966102]
[1742478306701,0.05695957,130.82,130.81,7.6475]
[1742478306897,30.31695957,130.82,130.79,0.04966102]
[1742478307195,30.31695957,130.82,130.79,7.69826102]
[1742478307399,0.05695957,130.82,130.79,0.04966102]
[1742478307700,7.70395957,130.82,130.79,0.04966102]
[1742478307897,0.05695957,130.82,130.79,0.04966102]
[1742478309097,7.70415957,130.82,130.79,0.04966102]
[1742478309301,0.05695957,130.82,130.79,0.04966102]
[1742478309699,0.05695957,130.82,130.79,7.69806102]
[1742478309900,0.05695957,130.82,130.79,0.04966102]
[1742478310405,0.05695957,130.82,130.8,7.6481]
[1742478310804,0.05695957,130.82,130.79,0.04966102]
[1742478312003,7.6475,130.81,130.79,0.04966102]
[1742478312204,0.05695957,130.82,130.79,7.69826102]
[1742478312400,0.05695957,130.82,130.79,0.04966102]
[1742478313001,7.6479,130.81,130.79,0.04966102]
[1742478313200,0.05695957,130.82,130.79,0.04966102]
[1742478314407,7.6478,130.81,130.79,0.04966102]
[1742478314708,0.05695957,130.82,130.79,0.04966102]
[1742478314907,7.6481,130.8,130.79,0.04966102]
[1742478315402,7.6499,130.77,130.76,252.22]
[1742478315599,30.1,130.8,130.75,17.67856757]
[1742478316408,30.1,130.82,130.8,7.6478]
[1742478316704,30.17725279,130.82,130.77,17.67856757]
[1742478316900,37.82455279,130.82,130.8,0.0492228]
[1742478317101,30.17725279,130.82,130.8,0.0492228]
[1742478318105,7.6475,130.81,130.8,0.0492228]
[1742478318503,30.17725279,130.82,130.8,0.0492228]
[1742478320005,37.82445279,130.82,130.8,0.0492228]
[1742478320710,30.17725279,130.82,130.8,0.0492228]
[1742478320910,0.05725279,130.82,130.8,0.0492228]
[1742478321509,7.6475,130.81,130.8,0.0492228]
[1742478322606,7.70455279,130.82,130.8,0.0492228]
[1742478322807,0.05725279,130.82,130.8,0.0492228]
[1742478323016,0.05725279,130.82,130.81,17.67856757]
[1742478323502,0.05725279,130.82,130.81,25.32606757]
[1742478323703,395.0,130.86,130.81,17.67856757]
[1742478323916,365.0,130.9,130.83,17.67856757]
[1742478324110,30.02,130.89,130.83,17.67856757]
[1742478324302,365.0,130.9,130.85,17.67856757]
[1742478324508,365.0,130.9,130.83,17.67856757]
[1742478324911,0.05053083,130.88,130.85,17.72661376]
[1742478325113,30.05053083,130.88,130.85,25.37141376]
[1742478325310,30.05053083,130.88,130.85,17.72661376]
[1742478325821,30.05053083,130.88,130.85,25.37151376]
[1742478326210,30.05053083,130.88,130.86,7.6444]
[1742478326410,0.05053083,130.88,130.85,17.72661376]
[1742478326609,0.05053083,130.88,130.87,17.67856757]
[1742478326812,367.1023,130.95,130.87,17.67856757]
[1742478327111,29.94,130.94,130.87,17.67856757]
[1742478327314,29.94,130.94,130.88,7.643]
[1742478327514,367.1023,130.95,130.87,17.67856757]
[1742478327714,29.9,130.94,130.89,17.67856757]
[1742478327906,0.05539849,130.92,130.9,0.05751533]
[1742478328413,0.05539849,130.92,130.91,17.67856757]
[1742478329211,0.05539849,130.92,130.91,25.32026757]
[1742478329409,0.05539849,130.92,130.91,17.67856757]
[1742478329612,0.05539849,130.92,130.9,0.05751533]
[1742478330212,37.4817,130.91,130.9,0.05751533]
[1742478330714,29.84,130.91,130.9,0.05751533]
[1742478331214,37.4817,130.91,130.9,0.05751533]
[1742478332910,367.1023,130.99,130.9,0.05751533]
[1742478332911,2.1023,130.99,130.9,0.05751533]
[1742478333216,29.8,130.98,130.92,35.88382419]
[1742478333408,2.1023,130.99,130.92,28.24272419]
[1742478333612,29.8,130.98,130.92,28.24272419]
[1742478334013,366.8719,131.02,130.92,28.24272419]
[1742478334217,366.8719,131.02,130.95,28.24272419]
[1742478334415,29.86,131.01,130.95,28.24272419]
[1742478334620,365.0,131.02,130.95,28.24272419]
[1742478334808,29.86,131.01,130.97,7.6379]
[1742478335009,2.1796,131.03,130.95,28.24272419]
[1742478335209,29.84,131.02,130.95,28.24272419]
[1742478335418,1.8719,131.05,130.98,7.69524452]
[1742478335419,29.84,131.01,130.98,7.69524452]
[1742478335617,29.84,131.02,130.98,0.05774452]
[1742478335813,37.4758,131.02,130.98,0.05774452]
[1742478336819,7.635,131.03,130.98,0.05774452]
[1742478337014,29.8,131.02,130.98,0.05774452]
[1742478337524,365.0,131.06,130.98,0.05774452]
[1742478337820,365.0,131.06,131.0,28.24272419]
[1742478338023,394.78,131.06,131.01,0.0499001]
[1742478338323,29.78,131.08,131.05,7.6335]
[1742478338523,29.78,131.07,131.05,7.6335]
[1742478338816,29.78,131.07,131.05,0.05723203]
[1742478339013,37.4127,131.07,131.05,0.05723203]
[1742478339212,29.78,131.07,131.05,0.05723203]
[1742478339416,365.0,131.11,131.05,0.05723203]
[1742478339417,29.74,131.08,131.05,0.05723203]
[1742478339623,3.29706686,131.14,131.06,57.98272419]
[1742478339825,29.74,131.13,131.06,57.98272419]
[1742478340219,29.74,131.13,131.09,0.0537762]
[1742478340618,7.6304,131.11,131.09,0.0537762]
[1742478341015,29.74,131.13,131.09,0.0537762]
[1742478341218,37.369,131.13,131.09,0.0537762]
[1742478341416,365.0,131.17,131.09,28.29650039]
[1742478341619,29.72,131.16,131.09,28.29650039]
[1742478341822,29.72,131.16,131.09,57.96272419]
[1742478342125,29.72,131.16,131.11,0.05562331]
[1742478342328,7.6289,131.13,131.11,0.05562331]
[1742478342716,29.72,131.16,131.11,0.05562331]
[1742478343326,365.0,131.17,131.11,0.05562331]
[1742478343327,7.6292,131.13,131.11,0.05562331]
[1742478343523,29.66,131.15,131.11,0.05562331]
[1742478343919,29.66,131.15,131.07,252.04]
[1742478344515,7.6313,131.09,131.07,252.04]
[1742478344722,29.62,131.11,131.07,252.04]
[1742478345026,0.0568525,131.1,131.08,0.05610509]
[1742478345922,0.0568525,131.1,131.08,28.29882928]
[1742478346322,7.6299,131.12,131.08,28.29882928]
[1742478346521,29.58,131.13,131.08,28.29882928]
[1742478346522,7.6306,131.11,131.08,28.29882928]
[1742478346718,29.58,131.13,131.08,28.29882928]
[1742478347624,37.2093,131.13,131.08,28.29882928]
[1742478347926,29.58,131.13,131.08,28.29882928]
[1742478348427,29.58,131.15,131.1,28.24272419]
[1742478348623,7.6286,131.14,131.1,35.87302419]
[1742478348823,365.0,131.17,131.11,0.05642313]
[1742478349029,29.6,131.16,131.11,0.05642313]
[1742478349225,29.58,131.16,131.11,7.68642313]
[1742478349623,7.628,131.15,131.11,9.84762313]
[1742478350029,29.58,131.17,131.12,28.24272419]
[1742478350228,366.8686,131.21,131.12,28.24272419]
[1742478350529,29.58,131.2,131.14,7.6283]
[1742478350733,29.56,131.19,131.12,28.24272419]
[1742478350927,29.56,131.19,131.16,0.05496758]
[1742478351324,7.6265,131.17,131.16,0.05496758]
[1742478352428,29.56,131.19,131.16,0.05496758]
[1742478352631,7.6262,131.18,131.16,0.05496758]
[1742478353132,365.0,131.21,131.16,0.05496758]
[1742478353333,29.54,131.2,131.16,0.05496758]
[1742478354034,1.32702868,131.25,131.16,0.05496758]
[1742478354230,7.6265,131.17,131.14,35.87092419]
[1742478354429,29.52,131.21,131.19,0.05675955]
[1742478354734,29.52,131.21,131.13,259.4084]
[1742478355231,29.52,131.21,131.13,251.78]
[1742478355729,0.05155107,131.18,131.16,0.05730347]
[1742478355931,29.54,131.17,131.16,0.05730347]
[1742478356834,37.1665,131.17,131.16,0.05730347]
[1742478360330,7.6291,131.13,131.11,30.40392419]
[1742478360537,29.54,131.17,131.11,30.40392419]
[1742478360935,7.6293,131.13,131.11,30.40392419]
[1742478361139,29.54,131.17,131.09,28.24272419]
[1742478361436,0.05513344,131.14,131.12,0.05276786]
[1742478361631,29.51513344,131.14,131.12,0.05276786]
[1742478361838,7.6289,131.13,131.12,0.05276786]
[1742478362025,29.51513344,131.14,131.12,0.05276786]
[1742478362435,0.05513344,131.14,131.12,57.73549205]
[1742478362624,0.05513344,131.14,131.13,7.6289]
[1742478363036,0.05513344,131.14,131.12,57.73549205]
[1742478363233,0.05513344,131.14,131.12,0.05276786]
[1742478363434,37.1289,131.13,131.12,0.05276786]
[1742478364432,29.5,131.13,131.12,0.05276786]
[1742478364933,37.1289,131.13,131.12,0.05276786]
[1742478365231,7.6289,131.13,131.12,0.05276786]
[1742478365436,37.1089,131.13,131.12,0.05276786]
[1742478365838,0.05513344,131.14,131.12,17.64575129]
[1742478366231,1.9938,131.21,131.15,17.59298343]
[1742478366635,31.4938,131.21,131.15,17.59298343]
[1742478367339,0.05520687,131.19,131.17,0.04972065]
[1742478368939,7.68090687,131.19,131.17,17.64270408]
[1742478369134,0.05520687,131.19,131.17,0.04972065]
[1742478369540,7.626,131.18,131.17,0.04972065]
[1742478369836,29.51520687,131.19,131.13,17.59298343]
[1742478370237,47.1081903,131.19,131.12,10.62834873]
[1742478370741,47.1081903,131.19,131.14,0.05559502]
[1742478371241,7.628,131.15,131.14,0.05559502]
[1742478371440,37.148,131.15,131.14,0.05559502]
[1742478372035,7.67613292,131.16,131.14,0.05559502]
[1742478372236,0.04853292,131.16,131.14,0.05559502]
[1742478372741,7.67593292,131.16,131.14,0.05559502]
[1742478372942,0.04853292,131.16,131.14,0.05559502]
[1742478373338,0.04853292,131.16,131.15,17.59298343]
[1742478373739,0.04853292,131.16,131.15,25.22068343]
[1742478374335,0.04853292,131.16,131.15,7.6277]
[1742478374541,0.04853292,131.16,131.14,0.05559502]
[1742478375738,37.17603292,131.16,131.14,0.05559502]
[1742478376043,29.54853292,131.16,131.14,0.05559502]
[1742478376243,29.54853292,131.16,131.14,7.68369502]
[1742478376548,29.54853292,131.16,131.14,0.05559502]
[1742478376847,7.6277,131.15,131.14,0.05559502]
[1742478377142,365.0,131.14,131.12,4.873e-05]
[1742478377341,7.6295,131.12,131.11,59.72388478]
[1742478377540,7.6295,131.12,131.11,36.77418478]
[1742478377844,29.58,131.13,131.1,149.95733519]
[1742478378048,7.63,131.11,131.1,149.95733519]
[1742478378346,7.63,131.11,131.1,31.62444826]
[1742478378646,7.63,131.11,131.1,0.04999732]
[1742478383245,29.62965069,131.13,131.04,13.8846]
[1742478383543,7.6321,131.08,131.04,6.2507]
[1742478383740,29.46,131.07,131.06,7.6329]
[1742478383944,29.46,131.08,131.06,7.6329]
[1742478384344,29.51253912,131.08,131.06,0.0486649]
[1742478384741,7.6324,131.07,131.06,6.49e-05]
[1742478386548,29.51253912,131.08,131.06,6.49e-05]
[1742478386549,0.05253912,131.08,131.06,6.49e-05]
[1742478387544,0.05253912,131.08,131.07,7.6324]
[1742478388953,1.32786416,131.15,131.07,35.75812234]
[1742478389154,395.08,131.18,131.11,28.13812234]
[1742478389451,395.08,131.18,131.14,7.628]
[1742478389653,7.6268,131.17,131.12,4.0379]
[1742478389853,395.08,131.18,131.12,11.667]
[1742478390049,0.04809902,131.16,131.13,0.0572763]
[1742478390354,7.6283,131.14,131.13,0.0572763]
[1742478391446,7.6317,131.09,131.07,4.1807]
[1742478391657,37.7117,131.09,131.07,4.1807]
[1742478391859,30.08,131.09,131.02,28.13812234]
[1742478392059,30.08,131.09,131.03,4.1807]
[1742478392553,30.08,131.09,131.05,7.6334]
[1742478392856,0.05185727,131.07,131.05,0.05189745]
[1742478393552,30.04,131.06,131.05,0.05189745]
[1742478393751,0.05185727,131.07,131.05,0.05189745]
[1742478393951,37.6729,131.06,131.05,0.05189745]
[1742478394153,30.04,131.06,131.05,0.05189745]
[1742478394951,37.6729,131.06,131.05,0.05189745]
[1742478395353,30.04,131.06,131.05,0.05189745]
[1742478395552,37.6729,131.06,131.05,0.05189745]
[1742478395954,30.04,131.06,131.05,0.05189745]
[1742478396860,30.04,131.06,131.05,9.745e-05]
[1742478397060,37.6729,131.06,131.05,9.745e-05]
[1742478399856,37.68,131.06,130.96,259.4384]
[1742478400163,28.13812234,131.04,130.96,259.4384]
[1742478400356,29.94,131.03,130.96,259.4384]
[1742478400660,29.94,131.03,130.96,251.8]
[1742478401164,0.05196357,131.01,130.99,7.637]
[1742478401364,29.9,131.0,130.99,7.637]
[1742478401663,29.9,131.0,130.98,0.05150555]
[1742478403964,37.5369,131.0,130.98,0.05150555]
[1742478404163,29.9,131.0,130.98,0.05150555]
[1742478404365,37.5365,131.0,130.98,7.68880555]
[1742478404567,29.9,131.0,130.98,0.05150555]
[1742478405067,7.637,130.99,130.98,0.05150555]
[1742478405268,29.9,131.0,130.98,0.05150555]
[1742478405568,37.5367,131.0,130.98,0.05150555]
[1742478406161,29.9,131.0,130.98,7.68910555]
[1742478406466,29.9,131.0,130.98,0.05150555]
[1742478407163,7.637,130.99,130.98,0.05150555]
[1742478408169,29.9,131.0,130.98,0.05150555]
[1742478408473,29.9,131.0,130.98,5.55e-06]
[1742478408662,372.637,130.99,130.98,5.55e-06]
[1742478408864,365.0,130.99,130.92,4.2174]
[1742478409968,365.0,130.99,130.94,0.05150926]
[1742478410165,0.05047969,130.97,130.94,0.05150926]
[1742478410361,0.05047969,130.97,130.96,7.6388]
[1742478411068,0.05047969,130.97,130.95,7.6391]
[1742478411270,0.05047969,130.97,130.94,0.05150926]
[1742478411464,7.68897969,130.97,130.94,0.05150926]
[1742478411664,7.68897969,130.97,130.94,7.69110926]
[1742478411864,7.68897969,130.97,130.94,0.05150926]
[1742478412164,7.68897969,130.97,130.94,7.69120926]
[1742478412364,0.05047969,130.97,130.94,0.05150926]
[1742478412763,0.05047969,130.97,130.96,7.6388]
[1742478413162,1.32923359,131.02,131.01,7.6359]
[1742478413374,7.6332,131.06,131.0,30.14]
[1742478413574,437.44870904,131.09,131.0,58.27812234]
[1742478413769,465.58683138,131.09,130.99,30.14]
[1742478414366,0.05518665,131.05,131.03,0.05485602]
[1742478414566,37.7341,131.04,131.03,0.05485602]
[1742478414963,30.1,131.04,131.03,0.05485602]
[1742478415768,37.7341,131.04,131.03,0.05485602]
[1742478420985,37.7341,131.04,131.03,5.602e-05]
[1742478421186,45.3741,131.04,131.03,5.602e-05]
[1742478421783,37.7341,131.04,131.03,5.602e-05]
[1742478422087,45.3741,131.04,131.03,5.602e-05]
[1742478422588,7.6375,130.99,130.93,6.2594]
[1742478422788,30.02,130.98,130.93,6.2594]
[1742478422988,30.02,130.97,130.93,6.2594]
[1742478423183,30.02,130.97,130.95,7.6388]
[1742478423389,30.02,130.97,130.93,6.2594]
[1742478423788,0.05586333,130.96,130.94,0.05631696]
[1742478424195,7.6394,130.95,130.94,0.05631696]
[1742478425190,7.69496333,130.96,130.94,0.05631696]
[1742478425687,0.05586333,130.96,130.94,0.05631696]
[1742478425989,30.0,130.99,130.95,28.13812234]
[1742478426197,7.6379,130.98,130.95,37.75992234]
[1742478426583,29.98,130.99,130.95,30.12092234]
[1742478426989,0.0499633,130.98,130.96,0.05173754]
[1742478427189,0.0499633,130.98,130.96,7.69043754]
[1742478427389,26.7082,130.99,130.96,0.05173754]
[1742478427590,365.0,131.02,130.97,28.13812234]
[1742478427786,37.6162,131.01,130.98,7.6372]
[1742478427986,365.0,131.02,130.97,28.13812234]
[1742478428391,37.615,131.03,131.0,7.6362]
[1742478428592,0.04866582,131.01,131.0,7.6362]
[1742478428904,63.30033827,131.06,130.99,28.13812234]
[1742478428905,7.6342,131.04,130.99,28.13812234]
[1742478429196,29.96,131.05,130.99,58.09812234]
[1742478429895,0.05663031,131.03,131.01,7.69358455]
[1742478430295,0.05663031,131.03,131.01,0.05828455]
[1742478430893,29.92,131.07,131.01,28.19640689]
[1742478431091,7.633,131.06,131.03,7.6343]
[1742478431292,365.0,131.09,131.01,28.13812234]
[1742478431493,7.633,131.06,131.02,7.6347]
[1742478431692,7.633,131.06,131.01,28.13812234]
[1742478431891,29.94,131.08,131.02,0.05430684]
[1742478432086,365.0,131.09,131.02,7.68920684]
[1742478432087,7.68580055,131.05,131.02,7.68920684]
[1742478432292,0.05200055,131.05,131.02,0.05430684]
[1742478432491,7.6347,131.03,131.02,0.05430684]
[1742478434097,37.5742,131.04,131.02,0.05430684]
[1742478434601,7.6321,131.08,131.03,58.07812234]
[1742478434894,29.94,131.1,131.03,60.22832234]
[1742478435086,7.6328,131.07,131.04,7.6338]
[1742478435486,29.94,131.1,131.03,60.22832234]
[1742478435892,0.05426932,131.08,131.05,0.0509038]
[1742478437992,7.6329,131.06,131.05,0.0509038]
[1742478438187,0.05426932,131.08,131.05,0.0509038]
[1742478438400,7.6329,131.06,131.05,0.0509038]
[1742478439597,29.82,131.07,131.05,0.0509038]
[1742478439897,7.6329,131.06,131.05,0.0509038]
[1742478440099,29.82,131.07,131.05,0.0509038]
[1742478440691,7.68626932,131.08,131.05,7.6841038]
[1742478441202,7.6326,131.07,131.05,0.0509038]
[1742478441400,0.05426932,131.08,131.05,0.0509038]
[1742478442291,0.05426932,131.08,131.06,7.6326]
[1742478443401,29.78,131.13,131.07,28.13812234]
[1742478443592,29.78,131.13,131.08,2.0045]
[1742478443795,7.6312,131.09,131.08,2.0045]
[1742478444005,29.78,131.13,131.08,2.0045]
[1742478444403,7.6305,131.11,131.09,0.05250383]
[1742478444605,0.05525133,131.12,131.09,0.05250383]
[1742478444905,0.05525133,131.12,131.09,7.68340383]
[1742478445301,7.68495133,131.12,131.09,7.68340383]
[1742478445502,0.05525133,131.12,131.09,0.05250383]
[1742478445899,0.05525133,131.12,131.11,7.63]
[1742478446506,0.05525133,131.12,131.09,7.68340383]
[1742478446810,0.05525133,131.12,131.09,0.05250383]
[1742478447002,365.0,131.17,131.13,7.6289]
[1742478447211,702.51443138,131.22,131.1,28.13812234]
[1742478447509,7.6271,131.17,131.14,7.628]
[1742478447809,29.68,131.17,131.11,29.68]
[1742478448012,29.68,131.17,131.13,7.6286]
[1742478448202,29.68,131.17,131.13,7.67976254]
[1742478448509,662.35292234,131.22,131.13,0.05116254]
[1742478448510,7.6259,131.19,131.13,0.05116254]
[1742478448706,29.68,131.19,131.14,2.0148]
[1742478448906,618.9672,131.22,131.15,0.05120458]
[1742478449102,29.66,131.21,131.15,7.67860458]
[1742478449603,7.6255,131.19,131.15,7.67860458]
[1742478449799,29.66,131.21,131.15,7.67860458]
[1742478450003,7.6258,131.19,131.15,7.67860458]
[1742478450204,29.66,131.21,131.15,0.05120458]
[1742478450602,7.6271,131.16,131.15,0.05120458]
[1742478450802,37.2671,131.16,131.15,0.05120458]
[1742478455814,28.13812234,131.2,131.05,1.9843]
[1742478455815,275.94730705,131.21,131.06,28.13812234]
[1742478456013,30.10372234,131.15,131.06,2.1523]
[1742478456215,28.13812234,131.13,131.06,2.1523]
[1742478456413,28.13812234,131.13,131.05,251.72]
[1742478456618,28.13812234,131.13,131.05,259.3532]
[1742478456816,28.13812234,131.13,131.05,261.4394]
[1742478457011,7.6321,131.08,131.05,261.4394]
[1742478457219,29.61537725,131.1,131.05,253.8062]
[1742478457520,7.6312,131.09,131.08,0.05489867]
[1742478457919,29.61537725,131.1,131.03,1.9932]
[1742478458118,29.56,131.1,131.03,1.9932]
[1742478458321,1.988,131.09,131.03,1.9932]
[1742478459322,7.6334,131.06,131.05,0.05192593]
[1742478459518,37.1734,131.06,131.05,0.05192593]
[1742478460517,7.6334,131.06,131.05,0.05192593]
[1742478460715,29.59400358,131.07,131.05,0.05192593]
[1742478461824,29.52,131.13,131.05,0.05192593]
[1742478462012,2.1158,131.12,131.03,57.65812234]
[1742478462411,2.1158,131.12,131.03,29.52]
[1742478462812,7.6315,131.09,131.03,29.52]
[1742478463014,29.52,131.08,131.06,0.0535797]
[1742478463410,29.56884249,131.08,131.06,0.0535797]
[1742478465413,29.56884249,131.08,131.07,7.6324]
[1742478465714,0.04884249,131.08,131.06,0.0535797]
[1742478466010,0.04884249,131.08,131.06,7.6864797]
[1742478466214,0.04884249,131.08,131.06,0.0535797]
[1742478466411,0.04884249,131.08,131.06,7.6862797]
[1742478466615,0.04884249,131.08,131.06,0.0535797]
[1742478468419,0.04884249,131.08,131.07,7.6324]
[1742478468720,0.04884249,131.08,131.06,0.0535797]
[1742478468912,7.68114249,131.08,131.06,0.0535797]
[1742478469118,0.04884249,131.08,131.06,0.0535797]
[1742478470022,0.04884249,131.08,131.06,7.6860797]
[1742478470222,0.04884249,131.08,131.06,0.0535797]
[1742478470420,29.36,131.07,131.06,0.0535797]
[1742478472124,0.04884249,131.08,131.0,251.72]
[1742478472314,29.36,131.07,131.0,251.72]
[1742478472517,29.36,131.06,131.05,7.6332]
[1742478473925,0.05039219,131.07,131.06,7.6329]
[1742478475926,0.05039219,131.07,131.05,7.6331]
[1742478476324,0.05039219,131.07,131.04,0.04861491]
[1742478477126,0.05039219,131.07,131.06,7.6329]
[1742478477933,0.05039219,131.07,131.04,0.04861491]
[1742478478223,7.68279219,131.07,131.04,0.04861491]
[1742478478425,0.05039219,131.07,131.04,0.04861491]
[1742478480027,7.6335,131.05,131.04,0.04861491]
[1742478480228,36.9735,131.05,131.04,0.04861491]
[1742478481332,29.34,131.05,130.97,17.6098532]
[1742478481727,7.6344,131.04,131.01,7.6353]
[1742478481924,29.34,131.05,130.97,17.6098532]
[1742478482128,17.6098532,131.04,130.97,25.2477532]
[1742478482326,7.6368,131.0,130.97,17.6098532]
[1742478482532,29.3,131.0,130.99,0.05325745]
[1742478482732,7.6378,130.98,130.96,7.6386]
[1742478482932,7.6378,130.98,130.95,17.6098532]
[1742478483134,29.3,131.0,130.96,0.05502646]
[1742478483328,7.6382,130.97,130.96,0.05502646]
[1742478483529,36.9582,130.97,130.96,0.05502646]
[1742478485137,29.32,130.97,130.96,0.05502646]
[1742478485826,7.68811392,130.98,130.96,0.05502646]
[1742478486034,0.05021392,130.98,130.96,0.05502646]
[1742478487038,0.05021392,130.98,130.96,7.69362646]
[1742478487239,0.05021392,130.98,130.96,0.05502646]
[1742478487640,0.05021392,130.98,130.96,7.69352646]
[1742478488039,0.05021392,130.98,130.96,7.69342646]
[1742478488539,0.05021392,130.98,130.97,7.6382]
[1742478489140,0.05021392,130.98,130.96,7.69352646]
[1742478489335,0.05021392,130.98,130.96,0.05502646]
[1742478490541,0.05021392,130.98,130.97,7.6382]
[1742478491041,0.05021392,130.98,130.96,0.05502646]
[1742478491735,0.05021392,130.98,130.97,7.6382]
[1742478492245,0.05021392,130.98,130.96,7.69362646]
[1742478492441,0.05021392,130.98,130.96,0.05502646]
[1742478494443,0.05021392,130.98,130.97,7.6382]
[1742478494742,0.05021392,130.98,130.96,0.05502646]
[1742478495144,0.05021392,130.98,130.97,7.6382]
[1742478496846,0.05021392,130.98,130.96,7.69372646]
[1742478497042,0.05021392,130.98,130.96,0.05502646]
[1742478497438,7.6382,130.97,130.96,0.05502646]
[1742478498743,7.6382,130.97,130.96,2.646e-05]
[1742478503147,7.6417,130.91,130.9,2.1302]
[1742478503336,7.6417,130.91,130.87,252.02]
[1742478503337,7.6417,130.91,130.88,7.6432]
[1742478503742,7.6423,130.9,130.87,261.6955]
[1742478503951,29.48,130.92,130.87,254.0517]
[1742478504148,29.48,130.91,130.87,252.02]
[1742478504345,7.6434,130.88,130.86,1.999]
[1742478504851,7.644,130.87,130.86,0.0518584]
[1742478505048,0.04963377,130.88,130.86,0.0518584]
[1742478506145,0.04963377,130.88,130.86,17.71744052]
[1742478506349,0.04963377,130.88,130.87,7.644]
[1742478507050,29.46,130.89,130.88,7.6434]
[1742478507652,29.42,130.91,130.88,17.66558212]
[1742478507950,29.42,130.91,130.86,17.66558212]
[1742478508151,29.42,130.91,130.88,0.05212779]
[1742478508152,29.47503026,130.91,130.88,0.05212779]
[1742478508951,29.47503026,130.91,130.9,7.6423]
[1742478509144,0.05503026,130.91,130.9,7.6423]
[1742478510054,17.66558212,130.99,130.9,17.66558212]
[1742478510252,630.40515,131.0,130.92,17.66558212]
[1742478510253,29.42,130.98,130.92,17.66558212]
[1742478511050,29.42,130.98,130.95,7.6389]
[1742478511251,0.05809969,130.96,130.95,7.6389]
[1742478511748,13.38515,131.0,130.99,7.637]
[1742478514545,13.38515,131.0,130.98,17.72317637]
[1742478514744,21.02175,131.0,130.98,0.05759425]
[1742478515147,13.38515,131.0,130.98,0.05759425]
[1742478515555,42.76515,131.0,130.98,0.05759425]
[1742478515757,50.40185,131.0,130.98,0.05759425]
[1742478515951,42.76515,131.0,130.98,0.05759425]
[1742478516457,17.66558212,130.99,130.91,4.2197]
[1742478516755,17.66558212,130.99,130.92,7.6408]
[1742478517055,7.6386,130.97,130.92,7.6408]
[1742478517256,29.4,130.96,130.92,7.6408]